[Event "WSTCC-65 2024"]
[Site "Krakow"]
[Date "2024.07.06"]
[Round "5.19"]
[White "Gasik, Jadwiga"]
[Black "Gorjaltsan, Eduard"]
[Result "0-1"]
[ECO "C02"]
[WhiteElo "1780"]
[BlackElo "1884"]
[Annotator "NA RC"]
[PlyCount "74"]
[EventDate "2024.07.01"]
[EventType "team-tourn"]
[EventCountry "POL"]
[SourceTitle "playchess.com"]
[Source "ChessBase"]
[SourceQuality "1"]
[TimeControl "40/5400+30:1800+30"]

1. e4 {[%emt 0:00:04]} e6 {[%emt 0:00:11]} 2. d4 {[%emt 0:00:09]} d5 {[%emt 0:00:10]} 3. e5 {[%emt 0:00:06]} c5 {[%emt 0:00:13]} 4. c3 {[%emt 0:00:06]} Qb6 {[%emt 0:00:19]} 5. Bd3 {[%emt 0:03:20]} Bd7 {[%emt 0:00:33]} 6. Nf3 {[%emt 0:00:38]} Nc6 {[%emt 0:00:18]} 7. Bc2 {[%emt 0:00:17]} Rc8 {[%emt 0:00:37]} 8. O-O {[%emt 0:00:49]} Qc7 {[%emt 0:02:18]} 9. Ba4 {[%emt 0:31:26]} b5 {[%emt 0:06:49]} 10. Bxb5 {[%emt 0:04:08]} Nxe5 {[%emt 0:00:26]} 11. Nxe5 {[%emt 0:01:10]} Bxb5 {[%emt 0:00:26]} 12. Re1 {[%emt 0:00:24]} Nf6 {[%emt 0:00:57]} 13. Bf4 {[%emt 0:00:44]} Bd6 {[%emt 0:03:41]} 14. a4 {[%emt 0:01:53]} Ba6 {[%emt 0:01:03]} 15. dxc5 {[%emt 0:13:21]} Qxc5 {[%emt 0:00:22]} 16. Be3 {[%emt 0:04:28]} Qc7 {[%emt 0:01:02]} 17. Bd4 {[%emt 0:00:18]} O-O {[%emt 0:05:48]} 18. Nd2 {[%emt 0:01:15]} Rfe8 {[%emt 0:07:07]} 19. b4 {[%emt 0:03:34]} Bb7 {[%emt 0:07:13]} 20. Rc1 {[%emt 0:01:22]} Ba8 {[%emt 0:00:38]} 21. a5 {[%emt 0:02:14]} Ne4 {[%emt 0:06:07]} 22. Nxe4 {[%emt 0:01:22]} dxe4 {[%emt 0:00:49]} 23. Ng4 {[%emt 0:08:20]} f5 {[%emt 0:00:57]} 24. g3 {[%emt 0:04:00]} fxg4 {[%emt 0:02:27]} 25. Qxg4 {[%emt 0:00:14]} Be5 {[%emt 0:00:23]} 26. Bc5 {[%emt 0:00:52]} Qc6 {[%emt 0:01:50]} 27. Re3 {[%emt 0:00:26]} Rcd8 {[%emt 0:00:26]} 28. Qh5 {[%emt 0:03:35]} Qc7 {[%emt 0:03:05]} 29. f4 {[%emt 0:02:18]} Bd6 {[%emt 0:01:34]} 30. Bd4 {[%emt 0:06:26]} Bxb4 {[%emt 0:01:42]} 31. Rd1 {[%emt 0:03:44]} Bxa5 {[%emt 0:01:16]} 32. Kg2 {[%emt 0:00:46]} Bb6 {[%emt 0:00:45]} 33. Be5 {[%emt 0:00:16]} Qf7 {[%emt 0:01:10]} 34. Qxf7+ {[%emt 0:01:13]} Kxf7 {[%emt 0:00:03]} 35. Rxd8 {[%emt 0:00:39]} Rxd8 {[%emt 0:00:37]} 36. Re2 {[%emt 0:00:17]} e3+ {[%emt 0:02:11]} 37. Kf1 {[%emt 0:00:00]} Rd1+ {[%emt 0:00:00]} 0-1

[Event "WSTCC-65 2024"]
[Site "Krakow"]
[Date "2024.07.06"]
[Round "5.20"]
[White "Tsifanskaya, Ludmila A"]
[Black "Bartczak, Hanna"]
[Result "1-0"]
[ECO "B07"]
[WhiteElo "1970"]
[BlackElo "1639"]
[Annotator "NA RC"]
[PlyCount "123"]
[EventDate "2024.07.01"]
[EventType "team-tourn"]
[EventCountry "POL"]
[SourceTitle "playchess.com"]
[Source "ChessBase"]
[SourceQuality "1"]
[TimeControl "40/5400+30:1800+30"]

1. e4 {[%emt 0:00:04]} d6 {[%emt 0:00:05]} 2. d4 {[%emt 0:00:06]} Nf6 {[%emt 0:00:05]} 3. Nc3 {[%emt 0:00:07]} g6 {[%emt 0:00:06]} 4. Nge2 {[%emt 0:00:25]} c5 {[%emt 0:01:49]} 5. dxc5 {[%emt 0:00:36]} Qa5 {[%emt 0:00:30]} 6. cxd6 {[%emt 0:00:21]} exd6 {[%emt 0:00:49]} 7. Be3 {[%emt 0:07:10]} Nc6 {[%emt 0:05:55]} 8. f3 {[%emt 0:01:35]} Be6 {[%emt 0:00:35]} 9. Nf4 {[%emt 0:01:14]} Rd8 {[%emt 0:02:54]} 10. Nxe6 {[%emt 0:02:32]} fxe6 {[%emt 0:00:07]} 11. Qd2 {[%emt 0:04:49]} d5 {[%emt 0:00:57]} 12. exd5 {[%emt 0:00:29]} exd5 {[%emt 0:06:40]} 13. Nb5 {[%emt 0:04:14]} Qxd2+ {[%emt 0:04:36]} 14. Bxd2 {[%emt 0:00:43]} a6 {[%emt 0:01:08]} 15. Nc3 {[%emt 0:01:12]} d4 {[%emt 0:04:59]} 16. Ne4 {[%emt 0:00:17]} Nxe4 17. fxe4 Ne5 {[%emt 0:04:48]} 18. Bd3 {[%emt 0:04:15]} Bg7 {[%emt 0:05:12]} 19. h3 {[%emt 0:03:34]} Rf8 {[%emt 0:01:36]} 20. Ke2 {[%emt 0:00:17]} Rd7 {[%emt 0:01:07]} 21. Rhf1 {[%emt 0:01:10]} Rdf7 {[%emt 0:01:39]} 22. Rxf7 {[%emt 0:02:32]} Rxf7 {[%emt 0:00:33]} 23. Rf1 {[%emt 0:01:13]} Rxf1 {[%emt 0:06:49]} 24. Kxf1 {[%emt 0:01:45]} Ke7 {[%emt 0:01:21]} 25. Ke2 {[%emt 0:00:50]} b5 {[%emt 0:01:20]} 26. b3 {[%emt 0:00:58]} Kd6 {[%emt 0:02:58]} 27. Bb4+ {[%emt 0:02:55]} Ke6 {[%emt 0:00:59]} 28. a4 {[%emt 0:00:49]} Nc6 {[%emt 0:05:58]} 29. Be1 {[%emt 0:02:59]} bxa4 {[%emt 0:01:43]} 30. bxa4 {[%emt 0:00:07]} a5 {[%emt 0:00:18]} 31. Bb5 {[%emt 0:02:45]} Nb4 {[%emt 0:00:38]} 32. Bxb4 {[%emt 0:00:06]} axb4 {[%emt 0:00:05]} 33. Kd3 {[%emt 0:00:20]} Ke5 {[%emt 0:02:55]} 34. Bc6 {[%emt 0:00:34]} Kd6 {[%emt 0:01:11]} 35. Bd5 {[%emt 0:01:42]} Kc5 {[%emt 0:01:03]} 36. Bc4 {[%emt 0:00:10]} Kb6 {[%emt 0:01:50]} 37. Bg8 {[%emt 0:00:55]} h6 {[%emt 0:01:26]} 38. Bf7 {[%emt 0:00:26]} Ka5 {[%emt 0:01:22]} 39. Bxg6 {[%emt 0:00:32]} Kxa4 {[%emt 0:00:09]} 40. Bf7 {[%emt 0:01:11]} Kb5 {[%emt 0:00:58]} 41. Ke2 {[%emt 0:33:49]} Kc5 {[%emt 0:33:24]} 42. Kf3 {[%emt 0:00:14]} Kd6 {[%emt 0:00:18]} 43. Kf4 {[%emt 0:00:25]} Be5+ {[%emt 0:01:08]} 44. Kf5 {[%emt 0:00:09]} Bg3 {[%emt 0:00:41]} 45. Kg4 {[%emt 0:07:10]} Bf2 {[%emt 0:02:14]} 46. Bc4 {[%emt 0:00:21]} Ke5 {[%emt 0:00:24]} 47. Bd3 {[%emt 0:00:09]} Be1 {[%emt 0:03:43]} 48. Kh5 {[%emt 0:00:48]} Bd2 {[%emt 0:00:18]} 49. g4 {[%emt 0:01:23]} Kf6 {[%emt 0:02:31]} 50. h4 {[%emt 0:00:36]} Bf4 {[%emt 0:03:23]} 51. g5+ {[%emt 0:00:26]} hxg5 {[%emt 0:01:41]} 52. hxg5+ {[%emt 0:00:01]} Kg7 {[%emt 0:01:12]} 53. Kg4 {[%emt 0:00:43]} Bd6 {[%emt 0:00:53]} 54. Kf5 {[%emt 0:00:03]} Be7 {[%emt 0:01:27]} 55. e5 {[%emt 0:04:07]} Bd8 {[%emt 0:02:25]} 56. g6 {[%emt 0:00:20]} Kf8 {[%emt 0:02:36]} 57. Ke6 {[%emt 0:00:19]} Bc7 {[%emt 0:02:41]} 58. Kd5 {[%emt 0:00:33]} Bb6 {[%emt 0:00:25]} 59. Kc6 {[%emt 0:01:43]} Bd8 {[%emt 0:00:57]} 60. Kd7 {[%emt 0:00:13]} Bg5 {[%emt 0:00:22]} 61. e6 {[%emt 0:00:22]} Bf6 {[%emt 0:00:26]} 62. g7+ {[%emt 0:01:12]} 1-0

[Event "WSTCC-65 2024"]
[Site "Krakow"]
[Date "2024.07.06"]
[Round "5.20"]
[White "Malienko, Alexander"]
[Black "Aragones-Melhem, Georgy"]
[Result "1-0"]
[ECO "B72"]
[WhiteElo "1904"]
[BlackElo "2079"]
[Annotator "NA RC"]
[PlyCount "73"]
[EventDate "2024.07.01"]
[EventType "team-tourn"]
[EventCountry "POL"]
[SourceTitle "playchess.com"]
[Source "ChessBase"]
[SourceQuality "1"]
[TimeControl "40/5400+30:1800+30"]

1. e4 {[%emt 0:00:03]} c5 {[%emt 0:00:13]} 2. Nf3 {[%emt 0:00:10]} Nc6 {[%emt 0:00:08]} 3. Nc3 {[%emt 0:00:45]} g6 {[%emt 0:00:57]} 4. d4 {[%emt 0:00:18]} cxd4 {[%emt 0:00:12]} 5. Nxd4 {[%emt 0:00:08]} Bg7 {[%emt 0:00:15]} 6. Be3 {[%emt 0:00:44]} Nf6 {[%emt 0:00:36]} 7. Nb3 {[%emt 0:03:14]} d6 {[%emt 0:02:07]} 8. Be2 {[%emt 0:00:11]} Be6 {[%emt 0:04:48]} 9. f4 {[%emt 0:03:20]} Qd7 {[%emt 0:02:47]} 10. h3 {[%emt 0:03:22]} h5 {[%emt 0:00:21]} 11. Qd2 {[%emt 0:05:00]} a6 {[%emt 0:06:06]} 12. Bb6 {[%emt 0:02:33]} Bh6 {[%emt 0:01:46]} 13. Rf1 {[%emt 0:11:43]} Rc8 {[%emt 0:05:41]} 14. Nd4 {[%emt 0:04:21]} Ne5 {[%emt 0:06:34]} 15. Nxe6 {[%emt 0:15:17]} Qxe6 {[%emt 0:00:42]} 16. Qd4 {[%emt 0:05:30]} Nc6 {[%emt 0:04:02]} 17. Qa4 {[%emt 0:01:54]} d5 {[%emt 0:02:56]} 18. e5 {[%emt 0:05:42]} Nd7 {[%emt 0:01:41]} 19. Bg1 {[%emt 0:00:30]} O-O {[%emt 0:01:55]} 20. g4 {[%emt 0:02:03]} d4 {[%emt 0:03:35]} 21. Bc4 {[%emt 0:03:33]} Nb6 {[%emt 0:00:52]} 22. Bxe6 {[%emt 0:00:25]} Nxa4 {[%emt 0:00:28]} 23. Bxc8 {[%emt 0:00:23]} dxc3 {[%emt 0:00:45]} 24. b3 {[%emt 0:01:55]} Rxc8 {[%emt 0:02:11]} 25. bxa4 {[%emt 0:00:13]} Nb4 {[%emt 0:00:24]} 26. Kd1 {[%emt 0:02:28]} Rd8+ {[%emt 0:01:07]} 27. Ke2 {[%emt 0:06:54]} Rd2+ {[%emt 0:02:23]} 28. Kf3 {[%emt 0:00:17]} hxg4+ {[%emt 0:01:52]} 29. hxg4 {[%emt 0:01:36]} e6 {[%emt 0:06:54]} 30. Be3 {[%emt 0:00:32]} Rxc2 {[%emt 0:01:41]} 31. Rfc1 {[%emt 0:00:36]} Rb2 32. Rxc3 {[%emt 0:00:24]} Nd5 {[%emt 0:00:48]} 33. Rc8+ Kh7 {[%emt 0:00:48]} 34. Rh1 {[%emt 0:01:10]} Rxa2 {[%emt 0:01:32]} 35. g5 {[%emt 0:00:42]} Ra3 {[%emt 0:00:21]} 36. Rxh6+ {[%emt 0:00:26]} Kg7 {[%emt 0:01:06]} 37. Rch8 {[%emt 0:00:14]} 1-0

[Event "WSTCC-65 2024"]
[Site "Krakow"]
[Date "2024.07.06"]
[Round "5.21"]
[White "Wallace, John Paul"]
[Black "Falk, Thomas"]
[Result "1-0"]
[ECO "C91"]
[WhiteElo "2369"]
[BlackElo "2022"]
[Annotator "TA"]
[PlyCount "53"]
[EventDate "2024.07.01"]
[EventType "team-tourn"]
[EventCountry "POL"]
[SourceTitle "playchess.com"]
[Source "ChessBase"]
[SourceQuality "1"]
[TimeControl "40/5400+30:1800+30"]

{[%evp 26,53,6,7,31,19,27,22,47,45,69,59,60,44,156,165,153,169,159,167,154,164,160,167,496,472,514,514,514,500]} 1. e4 {[%emt 0:00:30]} e5 {[%emt 0:00:05]} 2. Nf3 {[%emt 0:00:00]} Nc6 {[%emt 0:00:05]} 3. Bb5 {[%emt 0:00:00]} a6 {[%emt 0:00:07]} 4. Ba4 {[%emt 0:00:00]} Nf6 {[%emt 0:00:09]} 5. O-O {[%emt 0:00:04]} Be7 {[%emt 0:00:06]} 6. Re1 {[%emt 0:00:16]} b5 {[%emt 0:00:06]} 7. Bb3 {[%emt 0:00:05]} d6 {[%emt 0:00:09]} 8. c3 {[%emt 0:01:23]} O-O {[%emt 0:00:09]} 9. d4 {[%emt 0:01:43]} Bg4 {[%emt 0:01:59]} 10. Be3 {[%emt 0:00:07]} exd4 {[%emt 0:01:54]} 11. cxd4 {[%emt 0:00:10]} d5 {[%emt 0:00:16]} 12. e5 {[%emt 0:06:49]} Ne4 {[%emt 0:00:09]} 13. Nc3 {[%emt 0:01:54]} Nxc3 {[%emt 0:04:10]} 14. bxc3 {[%emt 0:00:06]} Qd7 {[%emt 0:00:39]} 15. Bc2 {[%emt 0:13:24]} Bf5 {[%emt 0:02:37]} 16. Bg5 {[%emt 0:00:56]} f6 {[%emt 0:09:19] The position is equal.} 17. exf6 {[%emt 0:12:16]} Bxf6 {[%emt 0:00:13]} 18. Bxf6 {[%emt 0:00:39]} Rxf6 {[%emt 0:00:39]} 19. a4 {[%emt 0:05:17] [#] Strongly threatening Bxf5.} Re8 {[%emt 0:06:41]} (19... b4 $14) 20. Rxe8+ $16 {[%emt 0:04:53]} Qxe8 {[%emt 0:00:08]} 21. Bxf5 {[%emt 0:00:12]} Rxf5 {[%emt 0:00:08]} 22. axb5 {[%emt 0:00:07]} axb5 {[%emt 0:00:17]} 23. Qd3 {[%emt 0:00:10][%csl LRb5,LRf5]} Ne7 {[%emt 0:22:58]} 24. Re1 {[%emt 0:04:35] White is more active.} g6 {[%emt 0:04:46] [#]} (24... Rf4 25. Ng5 Qg6 26. Qxb5 Qxg5) 25. Qe3 $18 {[%emt 0:00:56] White is clearly winning.} Kf8 {[%emt 0:02:48]} 26. Qh6+ {[%emt 0:01:18]} Kg8 {[%emt 0:00:15]} 27. Ng5 {[%emt 0:00:17] White took control after the opening.   Weighted Error Value: White=0.01 (flawless) /Black=0.71.  Mistake:       	---       	Black=2      OK:         	White=10    	---        Best:        	---       	Black=1} 1-0

[Event "WSTCC-65 2024"]
[Site "Krakow"]
[Date "2024.07.06"]
[Round "5.21"]
[White "Kennedy, Shernaz"]
[Black "Lohan, Martin"]
[Result "0-1"]
[ECO "E00"]
[WhiteElo "1784"]
[BlackElo "1826"]
[Annotator "NA RC"]
[PlyCount "40"]
[EventDate "2024.07.01"]
[EventType "team-tourn"]
[EventCountry "POL"]
[SourceTitle "playchess.com"]
[Source "ChessBase"]
[SourceQuality "1"]
[TimeControl "40/5400+30:1800+30"]

1. d4 {[%emt 0:00:01]} Nf6 {[%emt 0:00:13]} 2. c4 {[%emt 0:00:03]} e6 {[%emt 0:00:26]} 3. a3 {[%emt 0:00:30]} c5 {[%emt 0:01:22]} 4. d5 {[%emt 0:00:33]} g6 {[%emt 0:01:52]} 5. Nc3 {[%emt 0:00:28]} Bg7 {[%emt 0:02:41]} 6. e4 {[%emt 0:00:34]} exd5 {[%emt 0:01:30]} 7. cxd5 {[%emt 0:00:43]} d6 {[%emt 0:01:22]} 8. f4 {[%emt 0:01:33]} O-O {[%emt 0:01:33]} 9. Nf3 {[%emt 0:00:24]} Re8 {[%emt 0:01:18]} 10. Qc2 {[%emt 0:00:40]} Qe7 {[%emt 0:01:18]} 11. Bd3 {[%emt 0:00:21]} c4 {[%emt 0:09:47]} 12. Be2 {[%emt 0:03:15]} Nxe4 {[%emt 0:01:13]} 13. Nxe4 {[%emt 0:00:32]} Qxe4 {[%emt 0:00:26]} 14. Qxe4 {[%emt 0:00:32]} Rxe4 {[%emt 0:00:07]} 15. Ng5 {[%emt 0:01:57]} Re7 {[%emt 0:04:29]} 16. Kd1 {[%emt 0:02:53]} c3 {[%emt 0:02:49]} 17. bxc3 {[%emt 0:00:39]} Bxc3 {[%emt 0:00:13]} 18. Rb1 {[%emt 0:01:31]} Bd7 {[%emt 0:01:01]} 19. Bd3 {[%emt 0:01:28]} Na6 {[%emt 0:03:23]} 20. Bxa6 {[%emt 0:02:24]} Ba4+ {[%emt 0:00:17]} 0-1

[Event "WSTCC-65 2024"]
[Site "Krakow"]
[Date "2024.07.06"]
[Round "5.22"]
[White "Lomer, Edmund"]
[Black "Morriss, Pete"]
[Result "1/2-1/2"]
[ECO "A05"]
[WhiteElo "1943"]
[BlackElo "1982"]
[Annotator "NA RC"]
[PlyCount "96"]
[EventDate "2024.07.01"]
[EventType "team-tourn"]
[EventCountry "POL"]
[SourceTitle "playchess.com"]
[Source "ChessBase"]
[SourceQuality "1"]
[TimeControl "40/5400+30:1800+30"]

1. Nf3 {[%emt 0:00:09]} Nf6 {[%emt 0:03:44]} 2. g3 {[%emt 0:00:15]} b5 {[%emt 0:00:32]} 3. Bg2 {[%emt 0:00:26]} Bb7 {[%emt 0:00:08]} 4. d4 {[%emt 0:00:32]} e6 {[%emt 0:00:16]} 5. O-O {[%emt 0:00:20]} c5 {[%emt 0:00:13]} 6. c3 {[%emt 0:00:42]} d5 {[%emt 0:00:17]} 7. Bg5 {[%emt 0:00:45]} Na6 {[%emt 0:03:05]} 8. Nbd2 {[%emt 0:01:22]} Be7 {[%emt 0:03:36]} 9. dxc5 {[%emt 0:00:59]} Nxc5 {[%emt 0:02:17]} 10. Nb3 {[%emt 0:02:41]} Nce4 {[%emt 0:05:07]} 11. Bf4 {[%emt 0:02:37]} O-O {[%emt 0:01:58]} 12. Qd3 {[%emt 0:02:28]} b4 {[%emt 0:12:11]} 13. cxb4 {[%emt 0:03:09]} Bxb4 {[%emt 0:01:09]} 14. Rac1 {[%emt 0:01:14]} Bd6 {[%emt 0:07:28]} 15. Bxd6 {[%emt 0:07:47]} Qxd6 {[%emt 0:00:48]} 16. Nfd2 {[%emt 0:03:31]} Qb6 {[%emt 0:07:32]} 17. Nxe4 {[%emt 0:01:58]} Nxe4 {[%emt 0:00:43]} 18. Bxe4 {[%emt 0:01:45]} dxe4 {[%emt 0:00:08]} 19. Qd4 {[%emt 0:00:54]} Bd5 {[%emt 0:03:47]} 20. Qa4 {[%emt 0:11:10]} a5 {[%emt 0:04:20]} 21. Qa3 {[%emt 0:14:40]} Qb4 {[%emt 0:06:32]} 22. Rc3 {[%emt 0:07:38]} Rfb8 {[%emt 0:03:30]} 23. Rfc1 {[%emt 0:01:11]} g5 {[%emt 0:00:55]} 24. Rc5 {[%emt 0:05:36]} a4 {[%emt 0:02:33]} 25. Rc8+ {[%emt 0:00:47]} Kg7 {[%emt 0:01:02]} 26. Qxb4 {[%emt 0:01:18]} Rxb4 {[%emt 0:00:10]} 27. Rxa8 {[%emt 0:00:25]} axb3 {[%emt 0:00:16]} 28. a3 {[%emt 0:00:38]} Rd4 {[%emt 0:00:53]} 29. Rb8 {[%emt 0:03:06]} Rd2 {[%emt 0:00:44]} 30. Rb1 {[%emt 0:03:49]} Rxe2 {[%emt 0:01:01]} 31. Rb4 {[%emt 0:01:40]} e3 {[%emt 0:01:26]} 32. fxe3 {[%emt 0:00:48]} Rg2+ {[%emt 0:00:35]} 33. Kf1 {[%emt 0:00:28]} Rxh2 {[%emt 0:00:26]} 34. Re1 {[%emt 0:03:05]} Rxb2 {[%emt 0:04:03]} 35. e4 {[%emt 0:00:23]} Bc6 {[%emt 0:01:12]} 36. a4 {[%emt 0:00:17]} Ra2 {[%emt 0:01:02]} 37. Rxb3 {[%emt 0:00:32]} Rxa4 {[%emt 0:00:40]} 38. Rbe3 {[%emt 0:00:26]} Ra2 {[%emt 0:02:58]} 39. Kg1 {[%emt 0:00:16]} Rc2 {[%emt 0:02:40]} 40. R1e2 {[%emt 0:00:47]} Rxe2 {[%emt 0:00:21]} 41. Rxe2 {[%emt 0:30:12]} h5 {[%emt 0:30:13]} 42. e5 {[%emt 0:00:39]} g4 {[%emt 0:02:25]} 43. Rf2 {[%emt 0:00:13]} Bf3 {[%emt 0:00:18]} 44. Ra2 {[%emt 0:00:48]} f6 {[%emt 0:06:06]} 45. exf6+ {[%emt 0:00:10]} Kxf6 {[%emt 0:00:06]} 46. Kf2 {[%emt 0:00:30]} Kg5 {[%emt 0:01:05]} 47. Ra7 {[%emt 0:01:06]} h4 {[%emt 0:01:03]} 48. gxh4+ {[%emt 0:00:39]} Kxh4 1/2-1/2

[Event "WSTCC-65 2024"]
[Site "Krakow"]
[Date "2024.07.06"]
[Round "5.22"]
[White "McMahon, Frank"]
[Black "O`Neill, Julie Anne"]
[Result "1/2-1/2"]
[ECO "B06"]
[WhiteElo "1818"]
[BlackElo "1806"]
[Annotator "NA RC"]
[PlyCount "57"]
[EventDate "2024.07.01"]
[EventType "team-tourn"]
[EventCountry "POL"]
[SourceTitle "playchess.com"]
[Source "ChessBase"]
[SourceQuality "1"]
[TimeControl "40/5400+30:1800+30"]

1. e4 {[%emt 0:00:04]} g6 {[%emt 0:00:08]} 2. d4 {[%emt 0:00:11]} Bg7 {[%emt 0:00:07]} 3. Nf3 {[%emt 0:00:22]} d6 {[%emt 0:00:08]} 4. Bc4 {[%emt 0:00:42]} e6 {[%emt 0:00:34]} 5. Nc3 {[%emt 0:00:19]} Nd7 {[%emt 0:00:33]} 6. Bg5 {[%emt 0:01:08]} Ne7 {[%emt 0:00:20]} 7. Qd2 {[%emt 0:01:55]} h6 {[%emt 0:00:20]} 8. Be3 {[%emt 0:01:08]} a6 {[%emt 0:00:32]} 9. O-O-O {[%emt 0:02:34]} b5 {[%emt 0:04:02]} 10. Bd3 {[%emt 0:02:27]} Bb7 {[%emt 0:00:53]} 11. a3 {[%emt 0:06:13]} Rc8 {[%emt 0:03:05]} 12. h4 {[%emt 0:08:28]} c5 {[%emt 0:07:53]} 13. dxc5 {[%emt 0:07:39]} Nxc5 {[%emt 0:01:32]} 14. Bd4 {[%emt 0:05:21]} e5 {[%emt 0:02:26]} 15. Be3 {[%emt 0:02:39]} Nc6 {[%emt 0:04:30]} 16. Nh2 {[%emt 0:08:16]} b4 17. Nd5 {[%emt 0:11:21]} bxa3 {[%emt 0:06:53]} 18. bxa3 {[%emt 0:00:19]} Nd4 {[%emt 0:01:50]} 19. Kb1 {[%emt 0:06:46]} Bxd5 {[%emt 0:06:54]} 20. exd5 {[%emt 0:00:09]} Rb8+ {[%emt 0:00:20]} 21. Ka2 {[%emt 0:00:35]} e4 {[%emt 0:09:58]} 22. Bxd4 {[%emt 0:00:41]} Bxd4 {[%emt 0:00:28]} 23. Bb5+ {[%emt 0:00:10]} Rxb5 {[%emt 0:02:49]} 24. Qxd4 {[%emt 0:00:10]} O-O {[%emt 0:01:09]} 25. Ng4 {[%emt 0:00:44]} f6 {[%emt 0:06:21]} 26. Nxh6+ {[%emt 0:03:59]} Kh7 {[%emt 0:00:11]} 27. Ng4 {[%emt 0:00:21]} f5 {[%emt 0:03:49]} 28. Ne3 {[%emt 0:01:31]} Qe7 {[%emt 0:04:51]} 29. Rb1 {[%emt 0:01:53]} 1/2-1/2

[Event "WSTCC-65 2024"]
[Site "Krakow"]
[Date "2024.07.06"]
[Round "5.23"]
[White "MacElligott, Gerard"]
[Black "Hansch, Klaus-Michael"]
[Result "1-0"]
[ECO "A43"]
[WhiteElo "1993"]
[BlackElo "1898"]
[Annotator "NA RC"]
[PlyCount "68"]
[EventDate "2024.07.01"]
[EventType "team-tourn"]
[EventCountry "POL"]
[SourceTitle "playchess.com"]
[Source "ChessBase"]
[SourceQuality "1"]
[TimeControl "40/5400+30:1800+30"]

1. d4 {[%emt 0:00:21]} Nf6 {[%emt 0:00:16]} 2. Nf3 {[%emt 0:00:09]} c5 {[%emt 0:00:18]} 3. d5 {[%emt 0:02:49]} d6 {[%emt 0:00:30]} 4. c4 {[%emt 0:01:51]} b5 {[%emt 0:00:18]} 5. cxb5 {[%emt 0:00:33]} Qa5+ {[%emt 0:01:19]} 6. Nc3 {[%emt 0:00:38]} Ne4 {[%emt 0:00:30]} 7. Bd2 {[%emt 0:09:23]} Nxd2 {[%emt 0:02:54]} 8. Nxd2 {[%emt 0:02:55]} g6 {[%emt 0:01:42]} 9. Nc4 {[%emt 0:00:46]} Qd8 {[%emt 0:00:48]} 10. a4 {[%emt 0:03:28]} a5 {[%emt 0:05:33]} 11. g3 {[%emt 0:07:58]} Bg7 {[%emt 0:00:43]} 12. Bg2 {[%emt 0:00:11]} Nd7 {[%emt 0:02:11]} 13. O-O {[%emt 0:03:30]} O-O {[%emt 0:09:57]} 14. Qd2 {[%emt 0:03:37]} Nb6 {[%emt 0:02:36]} 15. Nxb6 {[%emt 0:03:13]} Qxb6 {[%emt 0:00:13]} 16. Qd3 {[%emt 0:03:58]} Bb7 {[%emt 0:01:26]} 17. Qc4 {[%emt 0:00:32]} Rfe8 {[%emt 0:07:06]} 18. Rad1 {[%emt 0:02:31]} Rad8 {[%emt 0:00:34]} 19. Rd2 {[%emt 0:02:10]} Bc8 {[%emt 0:03:08]} 20. Rfd1 {[%emt 0:04:43]} Bh6 {[%emt 0:03:23]} 21. e3 {[%emt 0:02:25]} Bg7 {[%emt 0:01:20]} 22. Bf3 {[%emt 0:06:38]} Bb7 {[%emt 0:08:14]} 23. h4 {[%emt 0:06:17]} Kf8 {[%emt 0:03:41]} 24. h5 {[%emt 0:06:37]} e5 {[%emt 0:07:30]} 25. hxg6 {[%emt 0:04:15]} hxg6 {[%emt 0:00:23]} 26. Qh4 {[%emt 0:01:33]} Qc7 {[%emt 0:03:10]} 27. g4 {[%emt 0:01:40]} f6 {[%emt 0:02:15]} 28. Be4 {[%emt 0:03:28]} Kf7 {[%emt 0:01:39]} 29. Bxg6+ {[%emt 0:01:20]} Ke7 {[%emt 0:00:58]} 30. Bxe8 {[%emt 0:00:51]} Rxe8 {[%emt 0:00:31]} 31. Qh7 {[%emt 0:02:39]} Kd8 {[%emt 0:00:35]} 32. Qg6 {[%emt 0:04:33]} Bh8 {[%emt 0:03:58]} 33. f3 {[%emt 0:03:46]} Bc8 {[%emt 0:03:00]} 34. Rh2 {[%emt 0:00:30]} c4 1-0

[Event "WSTCC-65 2024"]
[Site "Krakow"]
[Date "2024.07.06"]
[Round "5.24"]
[White "Kundt, Guenther"]
[Black "O`Connor, Eddie"]
[Result "1/2-1/2"]
[ECO "D31"]
[WhiteElo "1843"]
[BlackElo "1953"]
[Annotator "NA RC"]
[PlyCount "32"]
[EventDate "2024.07.01"]
[EventType "team-tourn"]
[EventCountry "POL"]
[SourceTitle "playchess.com"]
[Source "ChessBase"]
[SourceQuality "1"]
[TimeControl "40/5400+30:1800+30"]

1. d4 {[%emt 0:00:02]} d5 {[%emt 0:00:18]} 2. c4 {[%emt 0:00:09]} e6 {[%emt 0:00:13]} 3. Nc3 {[%emt 0:00:12]} Be7 {[%emt 0:00:31]} 4. Nf3 {[%emt 0:00:55]} Nf6 {[%emt 0:00:17]} 5. Bg5 {[%emt 0:00:40]} Nbd7 {[%emt 0:02:32]} 6. cxd5 {[%emt 0:00:16]} exd5 {[%emt 0:00:38]} 7. e3 {[%emt 0:00:37]} c6 {[%emt 0:01:33]} 8. Bd3 {[%emt 0:00:54]} h6 {[%emt 0:03:15]} 9. Bh4 {[%emt 0:01:18]} Ne4 {[%emt 0:02:48]} 10. Bxe7 {[%emt 0:00:28]} Qxe7 {[%emt 0:00:18]} 11. Qc2 {[%emt 0:12:34]} Nxc3 {[%emt 0:01:42]} 12. bxc3 {[%emt 0:01:56]} Nf6 {[%emt 0:01:56]} 13. Ne5 {[%emt 0:08:44]} O-O {[%emt 0:07:04]} 14. O-O {[%emt 0:03:50]} Be6 {[%emt 0:01:12]} 15. c4 {[%emt 0:04:27]} dxc4 {[%emt 0:01:32]} 16. Bxc4 {[%emt 0:00:42]} Bxc4 {[%emt 0:00:16]} 1/2-1/2

[Event "WSTCC-65 2024"]
[Site "Krakow"]
[Date "2024.07.06"]
[Round "5.24"]
[White "O`Sullivan, Tom"]
[Black "Shaughnessy, Elizabeth"]
[Result "1/2-1/2"]
[ECO "E70"]
[WhiteElo "1715"]
[BlackElo "1642"]
[Annotator "NA RC"]
[PlyCount "36"]
[EventDate "2024.07.01"]
[EventType "team-tourn"]
[EventCountry "POL"]
[SourceTitle "playchess.com"]
[Source "ChessBase"]
[SourceQuality "1"]
[TimeControl "40/5400+30:1800+30"]

1. d4 {[%emt 0:00:08]} Nf6 {[%emt 0:00:06]} 2. c4 {[%emt 0:00:10]} g6 {[%emt 0:00:05]} 3. Nc3 {[%emt 0:00:22]} Bg7 {[%emt 0:00:08]} 4. e4 {[%emt 0:00:58]} d6 {[%emt 0:00:02]} 5. Bd3 {[%emt 0:00:49]} O-O {[%emt 0:00:11]} 6. Nge2 {[%emt 0:00:40]} Nbd7 {[%emt 0:00:15]} 7. O-O {[%emt 0:01:22]} c5 {[%emt 0:00:34]} 8. d5 {[%emt 0:08:38]} Ne5 {[%emt 0:00:46]} 9. f4 {[%emt 0:02:35]} Nxd3 {[%emt 0:03:38]} 10. Qxd3 {[%emt 0:00:13]} Bd7 {[%emt 0:03:48]} 11. Bd2 {[%emt 0:02:54]} a6 {[%emt 0:00:39]} 12. Rab1 {[%emt 0:05:36]} b5 {[%emt 0:08:46]} 13. Ng3 {[%emt 0:10:50]} bxc4 {[%emt 0:05:28]} 14. Qxc4 {[%emt 0:01:51]} Ng4 {[%emt 0:04:00]} 15. Nge2 {[%emt 0:12:03]} e6 {[%emt 0:14:21]} 16. b3 {[%emt 0:07:59]} exd5 {[%emt 0:02:41]} 17. Qxd5 {[%emt 0:04:49]} Be6 {[%emt 0:00:19]} 18. Qd3 {[%emt 0:01:25]} Qb6 {[%emt 0:05:30]} 1/2-1/2